fUST/lending_fUST_20250623
["ID","MTS","AMOUNT","RATE_DAILY","PERIOD"]
[367013618,1750618053374,-5000.0,0.00020664,2]
[367013619,1750618053396,-187.5798374,0.00020773,2]
[367013620,1750618053417,-500.0,0.00020873,2]
[367013621,1750618053438,-190.10645576,0.00020873,2]
[367013622,1750618053460,-791.40261688,0.00022242,2]
[367013623,1750618053490,-1072.848608,0.00022245,6]
[367013624,1750618054177,-187.57983738,0.00021645,2]
[367013625,1750618054205,-1635.25557326,0.00022245,6]
[367013626,1750618054227,-314.5,0.00022276,2]
[367013627,1750618054249,-526.0,0.00022281,2]
[367013628,1750618054272,-1389.74627857,0.00022354,2]
[367013629,1750618054300,-2708.10418126,0.00022417,7]
[367013630,1750618054320,-591.54562517,0.00022456,2]
[367013631,1750618054341,-500.0,0.00022465,2]
[367013632,1750618054362,-493.8,0.00022515,5]
[367013633,1750618054382,-2000.0,0.00022516,2]
[367013634,1750618054403,-2000.0,0.00022516,2]
[367013635,1750618054424,-2000.0,0.00022516,2]
[367013636,1750618054446,-2000.0,0.00022516,2]
[367013637,1750618054468,-1000.0,0.00022529,2]
[367013638,1750618054491,-491.2,0.00022536,3]
[367013639,1750618054513,-1000.0,0.00022589,2]
[367013640,1750618054543,-2708.10418126,0.0002259,7]
[367013641,1750618054563,-160.0,0.00022593,2]
[367013642,1750618054584,-160.0,0.00022593,2]
[367013643,1750618054605,-12551.52821599,0.00022593,2]
[367013644,1750618054625,-846.39664074,0.00022593,2]
[367013645,1750618054645,-836.56272071,0.00022593,2]
[367013646,1750618054665,-213.59462818,0.00022593,2]
[367013647,1750618054686,-160.0,0.00022593,2]
[367013648,1750618054707,-160.0,0.00022593,2]
[367013649,1750618054728,-425.01221603,0.00022593,2]
[367013650,1750618054750,-230.14598372,0.00022593,2]
[367013651,1750618054770,-500.0,0.00022593,2]
[367013652,1750618054791,-8583.97,0.000226,7]
[367013653,1750618054813,-12551.52821599,0.000226,7]
[367013654,1750618054834,-2000.0,0.00022616,2]
[367013655,1750618054854,-2000.0,0.00022644,2]
[367013656,1750618054874,-2000.0,0.00022644,2]
[367013657,1750618054895,-399.34030724,0.00022644,2]
[367013658,1750618054916,-2000.0,0.00022644,2]
[367013659,1750618054936,-1136.74714663,0.00022646,2]
[367013660,1750618063043,-12551.52821599,0.000242,10]
[367013661,1750618063069,-160.0,0.000242,10]
[367013662,1750618063095,-836.56272071,0.000242,10]
[367013663,1750618063152,-12551.52821599,0.00025,10]
[367013664,1750618063179,-836.56272071,0.00025,10]
[367013665,1750618063226,-12551.52821599,0.00026,30]
[367013666,1750618063253,-160.0,0.00026,30]
[367013667,1750618063280,-836.56272071,0.00026,30]
[367013668,1750618063348,-12551.52821599,0.00029,10]
[367013669,1750618063375,-836.56272071,0.00029,10]
[367013670,1750618063403,-12551.52821599,0.0003,120]
[367013671,1750618063430,-153.0,0.00030428,30]
[367013672,1750618063456,-160.0,0.00031,120]
[367013673,1750618063483,-836.56272071,0.00031,120]
[367013674,1750618063514,-389201.94254845,0.000385,120]
[367013675,1750618063541,-158997.19063341,0.000385,120]
[367013676,1750618063569,-979.86,0.000385,120]
[367013677,1750618063595,-88239.55529884,0.000385,120]
[367013678,1750618063623,-5933.73,0.00038548,30]
[367013679,1750618063652,-200.0,0.00038549,120]
[367013680,1750618063680,-500.0,0.00038582,120]
[367013681,1750618063707,-209.72004,0.000386,120]
[367013682,1750618063733,-99187.22298426,0.0003868,15]
[367013683,1750618063760,-179.78425889,0.0003873,20]
[367013684,1750618063788,-500.0,0.00038782,120]
[367013685,1750618063822,-152.0,0.00038783,15]
[367013686,1750618063850,-500.0,0.00038982,120]
[367013687,1750618063877,-2111.0,0.00039,120]
[367013688,1750618063904,-1000.0,0.00039,120]
[367013689,1750618063930,-206.0,0.0003914,30]
[367013690,1750618063955,-500.0,0.00039182,120]
[367013691,1750618063979,-500.0,0.00039382,120]
[367013692,1750618064004,-152.0,0.00039389,15]
[367013693,1750618064031,-373.40409818,0.00039452,120]
[367013694,1750618064058,-500.0,0.00039582,120]
[367013695,1750618064084,-200.0,0.00039626,120]
[367013696,1750618064115,-747.69371412,0.00039782,120]
[367013697,1750618064143,-200.0,0.00039786,120]
[367013698,1750618064170,-200.0,0.00039789,120]
[367013699,1750618064197,-200.0,0.00039802,120]
[367013700,1750618064224,-6593.03,0.00039877,30]
[367013701,1750618064251,-900.0,0.00039881,60]
[367013702,1750618064276,-152.0,0.00039996,15]
[367013703,1750618064301,-165.46,0.0004,10]
[367013704,1750618064327,-269.56983431,0.0004,10]
[367013705,1750618064356,-500.0,0.0004,120]
[367013706,1750618064382,-803.71021333,0.0004,30]
[367013707,1750618064408,-153.94561899,0.0004,30]
[367013708,1750618064436,-2000.0,0.0004,120]
[367013709,1750618064464,-279.97,0.0004,120]
[367013710,1750618064493,-2000.0,0.0004,120]
[367013711,1750618064519,-160.0,0.0004,120]
[367013712,1750618064545,-425.01221603,0.0004,120]
[367013713,1750618064572,-524.02598587,0.0004,120]
[367013714,1750618064601,-213.59462818,0.0004,120]
[367013715,1750618064627,-230.14598372,0.0004,120]
[367013716,1750618064652,-160.0,0.0004,120]
[367013717,1750618064678,-155.0,0.0004,120]
[367013718,1750618064704,-12551.52821599,0.0004,120]
[367013719,1750618064730,-836.56272071,0.0004,120]
[367013720,1750618064757,-200.0,0.00040103,120]
[367013721,1750618064785,-200.0,0.00040289,120]
[367013722,1750618064811,-200.0,0.00040423,120]
[367013723,1750618064839,-900.0,0.00040429,60]
[367013724,1750618064865,-206.0,0.000405,30]
[367013725,1750618065066,-152.0,0.00040602,15]
[367013726,1750618065097,-200.0,0.0004062,120]
[367013727,1750618065123,-170.83525,0.00040758,14]
[367013728,1750618065150,-200.0,0.00040796,120]
[367013729,1750618065178,-200.0,0.00040836,120]
[367013730,1750618065205,-900.0,0.00040977,60]
[367013731,1750618065232,-2111.0,0.00041,120]
[367013732,1750618065258,-3301.4,0.00041,120]
[367013733,1750618065286,-460.0,0.00041095,120]
[367013734,1750618065318,-394.95109739,0.00041095,120]
[367013735,1750618065346,-436.91018953,0.00041095,120]
[367013736,1750618065372,-460.0,0.00041095,120]
[367013737,1750618065399,-460.0,0.00041095,120]
[367013738,1750618065426,-460.0,0.00041095,120]
[367013739,1750618065453,-1000.0,0.00041095,120]
[367013740,1750618065481,-1000.0,0.00041095,120]
[367013741,1750618065507,-460.0,0.00041095,120]
[367013742,1750618065534,-460.0,0.00041095,120]
[367013743,1750618065560,-460.0,0.00041095,120]
[367013744,1750618065585,-430.0,0.00041095,120]
[367013745,1750618065613,-460.0,0.00041095,120]
[367013746,1750618065641,-460.0,0.00041095,120]
[367013747,1750618065667,-460.0,0.00041095,120]
[367013748,1750618065694,-516.07,0.00041095,120]
[367013749,1750618065720,-502.42,0.00041095,120]
[367013750,1750618065746,-365.23604101,0.00041095,120]
[367013751,1750618065773,-460.0,0.00041095,120]
[367013752,1750618065800,-460.0,0.00041095,120]
[367013753,1750618065826,-878.46,0.00041095,120]
[367013754,1750618065855,-306.29639438,0.00041095,120]
[367013755,1750618065881,-460.0,0.00041095,120]
[367013756,1750618065908,-460.0,0.00041095,120]
[367013757,1750618065934,-622.14,0.00041095,120]
[367013758,1750618065961,-460.0,0.00041095,120]
[367013759,1750618065988,-460.0,0.00041095,120]
[367013760,1750618066014,-460.0,0.00041095,120]
[367013761,1750618066040,-460.0,0.00041095,120]
[367013762,1750618066067,-518.48,0.00041095,120]
[367013763,1750618066093,-460.0,0.00041095,120]
[367013764,1750618066118,-460.0,0.00041095,120]
[367013765,1750618066144,-460.0,0.00041095,120]
[367013766,1750618066169,-460.0,0.00041095,120]
[367013767,1750618066195,-460.0,0.00041095,120]
[367013768,1750618066220,-460.0,0.00041095,120]
[367013769,1750618066247,-460.0,0.00041095,120]
[367013770,1750618066272,-358.21032067,0.00041095,120]
[367013771,1750618066299,-460.0,0.00041095,120]
[367013772,1750618066325,-460.0,0.00041095,120]
[367013773,1750618066351,-460.0,0.00041095,120]
[367013774,1750618066378,-1226.97,0.00041095,120]
[367013775,1750618066404,-1175.85,0.00041095,120]
[367013776,1750618066430,-460.0,0.00041095,120]
[367013777,1750618066457,-204.58768926,0.00041095,120]
[367013778,1750618066488,-460.0,0.00041095,120]
[367013779,1750618066517,-460.0,0.00041095,120]
[367013780,1750618066543,-460.0,0.00041095,120]
[367013781,1750618066569,-405.90553827,0.00041095,120]
[367013782,1750618066597,-460.0,0.00041095,120]
[367013783,1750618066622,-460.0,0.00041095,120]
[367013784,1750618066648,-518.93534853,0.00041095,120]
[367013785,1750618066676,-460.0,0.00041095,120]
[367013786,1750618066703,-460.0,0.00041095,120]
[367013787,1750618066731,-460.0,0.00041095,120]
[367013788,1750618066758,-460.0,0.00041095,120]
[367013789,1750618066785,-460.0,0.00041095,120]
[367013790,1750618066812,-460.0,0.00041095,120]
[367013791,1750618066838,-460.0,0.00041095,120]
[367013792,1750618066866,-460.0,0.00041095,120]
[367013793,1750618066892,-460.0,0.00041095,120]
[367013794,1750618066918,-460.0,0.00041095,120]
[367013795,1750618066945,-460.0,0.00041095,120]
[367013796,1750618066970,-436.42168427,0.00041095,120]
[367013797,1750618066997,-460.0,0.00041095,120]
[367013798,1750618067023,-963.11,0.00041095,120]
[367013799,1750618067048,-460.0,0.00041095,120]
[367013800,1750618067074,-460.0,0.00041095,120]
[367013801,1750618067100,-460.0,0.00041095,120]
[367013802,1750618067126,-460.0,0.00041095,120]
[367013803,1750618067151,-460.0,0.00041095,120]
[367013804,1750618067176,-460.0,0.00041095,120]
[367013805,1750618067200,-460.0,0.00041095,120]
[367013806,1750618067225,-460.0,0.00041095,120]
[367013807,1750618067250,-460.0,0.00041095,120]
[367013808,1750618067275,-460.0,0.00041095,120]
[367013809,1750618067301,-460.0,0.00041095,120]
[367013810,1750618067326,-460.0,0.00041095,30]
[367013811,1750618067353,-460.0,0.00041095,120]
[367013812,1750618067379,-460.0,0.00041095,120]
[367013813,1750618067405,-460.0,0.00041095,120]
[367013814,1750618067430,-460.0,0.00041095,120]
[367013815,1750618067456,-500.0,0.00041095,120]
[367013816,1750618067484,-460.0,0.00041095,120]
[367013817,1750618067511,-460.0,0.00041095,120]
[367013818,1750618067537,-460.0,0.00041095,120]
[367013819,1750618067566,-460.0,0.00041095,120]
[367013820,1750618067755,-460.0,0.00041095,120]
[367013821,1750618067785,-460.0,0.00041095,120]
[367013822,1750618067812,-274.87394449,0.00041095,120]
[367013823,1750618067840,-460.0,0.00041095,120]
[367013824,1750618067867,-460.0,0.00041095,120]
[367013825,1750618067893,-460.0,0.00041095,120]
[367013826,1750618067919,-460.0,0.00041095,120]
[367013827,1750618067944,-460.0,0.00041095,120]
[367013828,1750618067970,-692.24,0.00041095,120]
[367013829,1750618067997,-460.0,0.00041095,120]
[367013830,1750618068023,-460.0,0.00041095,120]
[367013831,1750618068050,-460.0,0.00041095,120]
[367013832,1750618068076,-460.0,0.00041095,120]
[367013833,1750618068104,-460.0,0.00041095,120]
[367013834,1750618068129,-500.0,0.00041095,120]
[367013835,1750618068156,-460.0,0.00041095,120]
[367013836,1750618068184,-460.0,0.00041095,120]
[367013837,1750618068210,-464.67964733,0.00041095,120]
[367013838,1750618068238,-460.0,0.00041095,120]
[367013839,1750618068264,-460.0,0.00041095,120]
[367013840,1750618068293,-460.0,0.00041095,120]
[367013841,1750618068319,-460.0,0.00041095,120]
[367013842,1750618068345,-460.0,0.00041095,120]
[367013843,1750618068372,-460.0,0.00041095,120]
[367013844,1750618068399,-460.0,0.00041095,120]
[367013845,1750618068426,-979.73,0.00041095,120]
[367013846,1750618068455,-460.0,0.00041095,120]
[367013847,1750618068488,-460.0,0.00041095,120]
[367013848,1750618068516,-460.0,0.00041095,120]
[367013849,1750618068544,-327.66373908,0.00041095,120]
[367013850,1750618068572,-357.76452755,0.00041095,120]
[367013851,1750618068601,-460.0,0.00041095,120]
[367013852,1750618068628,-460.0,0.00041095,14]
[367013853,1750618068656,-460.0,0.00041095,120]
[367013854,1750618068685,-696.27,0.00041095,120]
[367013855,1750618068714,-460.0,0.00041095,120]
[367013856,1750618068742,-460.0,0.00041095,120]
[367013857,1750618068770,-460.0,0.00041095,120]
[367013858,1750618068798,-460.0,0.00041095,120]
[367013859,1750618068826,-460.0,0.00041095,120]
[367013860,1750618068856,-460.0,0.00041095,120]
[367013861,1750618068883,-274.16649072,0.00041095,120]
[367013862,1750618068909,-460.0,0.00041095,120]
[367013863,1750618068935,-460.0,0.00041095,120]
[367013864,1750618068961,-460.0,0.00041095,120]
[367013865,1750618068988,-464.46217809,0.00041095,120]
[367013866,1750618069013,-333.68613582,0.00041095,120]
[367013867,1750618069040,-460.0,0.00041095,120]
[367013868,1750618069067,-460.0,0.00041095,120]
[367013869,1750618069096,-460.0,0.00041095,120]
[367013870,1750618069123,-460.0,0.00041095,120]
[367013871,1750618069150,-460.0,0.00041095,120]
[367013872,1750618069178,-460.0,0.00041095,120]
[367013873,1750618069205,-460.49662872,0.00041095,120]
[367013874,1750618069231,-493.09,0.00041095,120]
[367013875,1750618069258,-460.0,0.00041095,120]
[367013876,1750618069284,-460.0,0.00041095,120]
[367013877,1750618069310,-583.9813958,0.00041095,120]
[367013878,1750618069336,-504.2843535,0.00041095,120]
[367013879,1750618069366,-460.0,0.00041095,120]
[367013880,1750618069393,-460.0,0.00041095,120]
[367013881,1750618069422,-460.0,0.00041095,120]
[367013882,1750618069447,-430.65324588,0.00041095,120]
[367013883,1750618069475,-555.7676786,0.00041095,120]
[367013884,1750618069501,-460.0,0.00041095,120]
[367013885,1750618069528,-460.0,0.00041095,120]
[367013886,1750618069553,-460.0,0.00041095,120]
[367013887,1750618069578,-460.0,0.00041095,120]
[367013888,1750618069603,-435.61114273,0.00041095,120]
[367013889,1750618069629,-460.0,0.00041095,120]
[367013890,1750618069655,-460.0,0.00041095,120]
[367013891,1750618069681,-159.61121548,0.00041095,120]
[367013892,1750618069707,-532.37,0.00041095,120]
[367013893,1750618069735,-460.0,0.00041095,120]
[367013894,1750618069762,-460.0,0.00041095,120]
[367013895,1750618069788,-460.0,0.00041095,120]
[367013896,1750618069814,-460.0,0.00041095,120]
[367013897,1750618069842,-460.0,0.00041095,120]
[367013898,1750618069867,-460.0,0.00041095,120]
[367013899,1750618069894,-460.0,0.00041095,120]
[367013900,1750618069918,-460.0,0.00041095,30]
[367013901,1750618069943,-460.0,0.00041095,120]
[367013902,1750618069968,-460.0,0.00041095,120]
[367013903,1750618069994,-510.23087786,0.00041095,120]
[367013904,1750618070022,-460.0,0.00041095,120]
[367013905,1750618070048,-460.0,0.00041095,120]
[367013906,1750618070075,-460.0,0.00041095,120]
[367013907,1750618070101,-460.0,0.00041095,120]
[367013908,1750618070127,-460.0,0.00041095,120]
[367013909,1750618070153,-460.0,0.00041095,120]
[367013910,1750618070179,-460.0,0.00041095,120]
[367013911,1750618070204,-460.0,0.00041095,120]
[367013912,1750618070231,-460.0,0.00041095,120]
[367013913,1750618070259,-460.0,0.00041095,120]
[367013914,1750618070286,-719.72,0.00041095,120]
[367013915,1750618070313,-1089.18,0.00041095,120]
[367013916,1750618070507,-460.0,0.00041095,120]
[367013917,1750618070536,-460.0,0.00041095,120]
[367013918,1750618070567,-460.0,0.00041095,120]
[367013919,1750618070595,-445.71375642,0.00041095,120]
[367013920,1750618070627,-460.0,0.00041095,120]
[367013921,1750618070654,-460.0,0.00041095,120]
[367013922,1750618070682,-460.0,0.00041095,120]
[367013923,1750618070708,-460.0,0.00041095,120]
[367013924,1750618070736,-1268.62,0.00041095,120]
[367013925,1750618070763,-460.0,0.00041095,120]
[367013926,1750618070789,-460.0,0.00041095,120]
[367013927,1750618070817,-460.0,0.00041095,120]
[367013928,1750618070845,-460.0,0.00041095,120]
[367013929,1750618070871,-460.0,0.00041095,120]
[367013930,1750618070898,-751.46,0.00041095,120]
[367013931,1750618070925,-460.0,0.00041095,120]
[367013932,1750618070951,-1850.65,0.00041095,120]
[367013933,1750618070979,-460.0,0.00041095,120]
[367013934,1750618071007,-460.0,0.00041095,120]
[367013935,1750618071037,-460.0,0.00041095,120]
[367013936,1750618071065,-653.53,0.00041095,120]
[367013937,1750618071092,-460.0,0.00041095,120]
[367013938,1750618071119,-460.0,0.00041095,120]
[367013939,1750618071146,-460.0,0.00041095,120]
[367013940,1750618071174,-460.0,0.00041095,120]
[367013941,1750618071201,-460.0,0.00041095,120]
[367013942,1750618071227,-1000.0,0.00041095,120]
[367013943,1750618071254,-460.0,0.00041095,120]
[367013944,1750618071279,-466.12,0.00041095,120]
[367013945,1750618071309,-460.0,0.00041095,120]
[367013946,1750618071337,-460.0,0.00041095,120]
[367013947,1750618071366,-460.0,0.00041095,120]
[367013948,1750618071394,-460.0,0.00041095,120]
[367013949,1750618071421,-460.0,0.00041095,120]
[367013950,1750618071448,-246.32805147,0.00041095,120]
[367013951,1750618071478,-460.0,0.00041095,120]
[367013952,1750618071505,-596.96882035,0.00041095,120]
[367013953,1750618071532,-460.0,0.00041095,120]
[367013954,1750618071559,-518.66,0.00041095,120]
[367013955,1750618071585,-460.0,0.00041095,120]
[367013956,1750618071612,-262.43580363,0.00041095,120]
[367013957,1750618071640,-460.0,0.00041095,120]
[367013958,1750618071667,-460.0,0.00041095,120]
[367013959,1750618071694,-460.0,0.00041095,120]
[367013960,1750618071725,-460.0,0.00041095,120]
[367013961,1750618071752,-460.0,0.00041095,120]
[367013962,1750618071779,-460.0,0.00041095,120]
[367013963,1750618071808,-574.82700267,0.00041095,120]
[367013964,1750618071834,-460.0,0.00041095,120]
[367013965,1750618071862,-460.0,0.00041095,120]
[367013966,1750618071888,-460.0,0.00041095,120]
[367013967,1750618071916,-447.26132407,0.00041095,120]
[367013968,1750618071943,-460.0,0.00041095,120]
[367013969,1750618071971,-460.0,0.00041095,120]
[367013970,1750618071997,-460.0,0.00041095,120]
[367013971,1750618072023,-460.0,0.00041095,120]
[367013972,1750618072049,-214.95574998,0.00041095,120]
[367013973,1750618072075,-726.12,0.00041095,120]
[367013974,1750618072100,-460.0,0.00041095,120]
[367013975,1750618072124,-401.92588034,0.00041095,120]
[367013976,1750618072145,-460.0,0.00041095,120]
[367013977,1750618072167,-460.0,0.00041095,120]
[367013978,1750618072189,-460.0,0.00041095,120]
[367013979,1750618072214,-460.0,0.00041095,120]
[367013980,1750618072240,-460.0,0.00041095,120]
[367013981,1750618072266,-460.0,0.00041095,120]
[367013982,1750618072292,-460.0,0.00041095,120]
[367013983,1750618072319,-1085.8,0.00041095,120]
[367013984,1750618072347,-460.0,0.00041095,120]
[367013985,1750618072373,-460.0,0.00041095,120]
[367013986,1750618072401,-460.0,0.00041095,120]
[367013987,1750618072427,-1272.34,0.00041095,120]
[367013988,1750618072459,-460.0,0.00041095,120]
[367013989,1750618072489,-460.0,0.00041095,120]
[367013990,1750618072517,-544.42,0.00041095,120]
[367013991,1750618072544,-460.0,0.00041095,120]
[367013992,1750618072569,-460.0,0.00041095,120]
[367013993,1750618072596,-924.87,0.00041095,120]
[367013994,1750618072628,-478.07,0.00041095,20]
[367013995,1750618072656,-460.0,0.00041095,120]
[367013996,1750618072684,-460.0,0.00041095,120]
[367013997,1750618072711,-460.0,0.00041095,120]
[367013998,1750618072738,-448.50286984,0.00041095,120]
[367013999,1750618072765,-460.0,0.00041095,120]
[367014000,1750618072792,-460.0,0.00041095,120]
[367014001,1750618072818,-460.0,0.00041095,120]
[367014002,1750618072845,-496.1,0.00041095,120]
[367014003,1750618072871,-460.0,0.00041095,120]
[367014004,1750618072897,-709.34,0.00041095,120]
[367014005,1750618072924,-1225.39,0.00041095,120]
[367014006,1750618072950,-460.0,0.00041095,120]
[367014007,1750618072975,-682.34,0.00041095,120]
[367014008,1750618073001,-2065.64,0.00041095,30]
[367014009,1750618073027,-460.0,0.00041095,120]
[367014010,1750618073052,-586.93401981,0.00041095,120]
[367014011,1750618073077,-460.0,0.00041095,120]
[367014012,1750618073256,-460.0,0.00041095,120]
[367014013,1750618073283,-460.0,0.00041095,120]
[367014014,1750618073308,-460.0,0.00041095,120]
[367014015,1750618073334,-402.0110064,0.00041095,120]
[367014016,1750618073358,-191.82928328,0.00041095,120]
[367014017,1750618091650,-1621.92,0.00023359,10]
[367014018,1750618091679,-1351.6,0.00023359,10]
[367014019,1750618091717,-666.40515646,0.00023866,10]
[367014020,1750618091760,-666.40515646,0.00024003,10]
[367014021,1750618091794,-666.40515646,0.00024141,10]
[367014022,1750618091827,-666.40515646,0.00024279,10]
[367014023,1750618091861,-666.40515646,0.00024417,11]
[367014024,1750618091894,-666.40515646,0.00024555,11]
[367014025,1750618091921,-200.0,0.00024658,15]
[367014026,1750618091951,-666.40515646,0.00024693,11]
[367014027,1750618091983,-666.40515646,0.00024831,12]
[367014028,1750618092025,-666.40515646,0.00024969,12]
[367014029,1750618092065,-666.40515646,0.00025107,12]
[367014030,1750618092099,-666.40515646,0.00025245,12]
[367014031,1750618092132,-666.40515646,0.00025383,13]
[367014032,1750618092165,-666.40515646,0.00025521,13]
[367014033,1750618092198,-666.40515646,0.00025659,13]
[367014034,1750618092231,-666.40515646,0.00025797,13]
[367014035,1750618092305,-461.51,0.00028203,30]
[367014036,1750618092333,-923.02,0.00029546,30]
[367014037,1750618092360,-1384.54,0.00030889,30]
[367014038,1750618092388,-1846.05,0.00032232,30]
[367014039,1750618092416,-2307.56,0.00033575,30]
[367014040,1750618092443,-2769.07,0.00034918,30]
[367014041,1750618092475,-3230.59,0.00036261,30]
[367014042,1750618092513,-3692.1,0.00037604,30]
[367014043,1750618092541,-4153.61,0.00038947,30]
[367014044,1750618092749,-4615.12,0.0004029,30]
[367014045,1750618092778,-268.17071672,0.00041095,120]
[367014046,1750618092805,-460.0,0.00041095,120]
[367014047,1750618092832,-460.0,0.00041095,120]
[367014048,1750618092859,-460.0,0.00041095,120]
[367014049,1750618092886,-345.38145839,0.00041095,120]
[367014050,1750618092914,-500.0,0.00041095,120]
[367014051,1750618092940,-500.0,0.00041095,120]
[367014052,1750618092966,-500.0,0.00041095,120]
[367014053,1750618092993,-500.0,0.00041095,120]
[367014054,1750618093019,-500.0,0.00041095,120]
[367014055,1750618093045,-500.0,0.00041095,120]
[367014056,1750618093072,-460.0,0.00041095,120]
[367014057,1750618093098,-460.0,0.00041095,120]
[367014058,1750618093125,-200.0,0.00041095,120]
[367014059,1750618093152,-1034.81,0.00041095,120]
[367014060,1750618093179,-460.0,0.00041095,120]
[367014061,1750618093205,-500.0,0.00041095,120]
[367014062,1750618093237,-500.0,0.00041095,120]
[367014063,1750618093264,-500.0,0.00041095,120]
[367014064,1750618093293,-500.0,0.00041095,120]
[367014065,1750618093323,-500.0,0.00041095,120]
[367014066,1750618093350,-500.0,0.00041095,120]
[367014067,1750618093379,-500.0,0.00041095,120]
[367014068,1750618093407,-500.0,0.00041095,120]
[367014069,1750618093434,-500.0,0.00041095,120]
[367014070,1750618093460,-607.50009882,0.00041095,120]
[367014071,1750618093488,-460.0,0.00041095,120]
[367014072,1750618093515,-460.0,0.00041095,120]
[367014073,1750618093543,-1062.79,0.00041095,120]
[367014074,1750618093573,-2816.87,0.00041095,120]
[367014075,1750618093600,-575.61,0.00041095,120]
[367014076,1750618093627,-471.46,0.00041095,120]
[367014077,1750618093654,-510.59,0.00041095,120]
[367014078,1750618093681,-460.0,0.00041095,120]
[367014079,1750618093708,-489.0698376,0.00041095,30]
[367014080,1750618093736,-392.35476724,0.00041095,120]
[367014081,1750618093763,-460.0,0.00041095,120]
[367014082,1750618093790,-759.1,0.00041095,120]
[367014083,1750618093818,-1363.37,0.00041095,120]
[367014084,1750618093844,-460.0,0.00041095,120]
[367014085,1750618093871,-460.0,0.00041095,60]
[367014086,1750618093897,-460.0,0.00041095,120]
[367014087,1750618093923,-460.0,0.00041095,120]
[367014088,1750618093948,-460.0,0.00041095,120]
[367014089,1750618093973,-460.0,0.00041095,120]
[367014090,1750618093998,-832.11,0.00041095,120]
[367014091,1750618094023,-460.0,0.00041095,120]
[367014092,1750618094049,-460.0,0.00041095,120]
[367014093,1750618094076,-460.0,0.00041095,120]
[367014094,1750618094103,-653.07,0.00041095,120]
[367014095,1750618094136,-460.0,0.00041095,120]
[367014096,1750618094164,-804.45,0.00041095,120]
[367014097,1750618094192,-460.0,0.00041095,120]
[367014098,1750618094219,-804.45,0.00041095,120]
[367014099,1750618094245,-804.45,0.00041095,120]
[367014100,1750618094272,-804.45,0.00041095,120]
[367014101,1750618094299,-804.45,0.00041095,120]
[367014102,1750618094325,-804.45,0.00041095,120]
[367014103,1750618094350,-804.45,0.00041095,120]
[367014104,1750618094376,-804.45,0.00041095,120]
[367014105,1750618094403,-460.0,0.00041095,120]
[367014106,1750618094431,-839.43,0.00041095,120]
[367014107,1750618094457,-804.45,0.00041095,120]
[367014108,1750618094487,-839.43,0.00041095,120]
[367014109,1750618094514,-804.45,0.00041095,120]
[367014110,1750618094542,-839.43,0.00041095,120]
[367014111,1750618094570,-804.45,0.00041095,120]
[367014112,1750618094595,-839.43,0.00041095,120]
[367014113,1750618094621,-460.0,0.00041095,120]
[367014114,1750618094648,-804.45,0.00041095,120]
[367014115,1750618094675,-839.43,0.00041095,120]
[367014116,1750618094702,-804.45,0.00041095,120]
[367014117,1750618094729,-839.43,0.00041095,120]